fUST/lending_fUST_20240413
["ID","MTS","AMOUNT","RATE_DAILY","PERIOD"]
[322297900,1712940641387,-224.014441,0.00050469,2]
[322297902,1712940641397,-225.086783,0.00050469,2]
[322297904,1712940641407,-174.87576,0.00050469,2]
[322297906,1712940641416,-175.386852,0.00050469,2]
[322297908,1712940641425,-153.8365412,0.00050661,60]
[322297910,1712940641434,-20104.16784939,0.00051,120]
[322297912,1712940641443,-154.10451125,0.00051403,60]
[322297914,1712940641457,-1000.0,0.00052,2]
[322297916,1712940641537,-200.0,0.00052265,120]
[322297917,1712940641547,-222.97890748,0.00052891,60]
[322297918,1712940641557,-600.0,0.00053,90]
[322297919,1712940641566,-2151.0,0.00053133,10]
[322297920,1712940641575,-153.8365412,0.0005319,60]
[322297921,1712940641585,-200.0,0.000532,120]
[322297922,1712940641594,-2796.723078,0.00053425,120]
[322297924,1712940641603,-1000.0,0.00053438,2]
[322297926,1712940641613,-153.8365412,0.00053487,60]
[322297928,1712940641622,-156.62948461,0.00053612,3]
[322297930,1712940641631,-1170.59352373,0.00053979,48]
[322297932,1712940641639,-1001.66887625,0.00054,120]
[322297934,1712940641648,-4649.1251624,0.00054,120]
[322297935,1712940641657,-168.645527,0.000541,2]
[322297937,1712940641666,-153.8365412,0.00054267,60]
[322297939,1712940641675,-8144.96473121,0.00054739,15]
[322297942,1712940641685,-154.86062544,0.00054787,2]
[322297944,1712940641695,-161.66972791,0.00054787,4]
[322297946,1712940641704,-1218.09804024,0.00054791,4]
[322297947,1712940641719,-475.11137739,0.00054791,4]
[322297950,1712940641729,-294.57468959,0.00054791,4]
[322297952,1712940641740,-3340.22236365,0.00054791,4]
[322297954,1712940641749,-318.22520126,0.00054794,120]
[322297956,1712940641758,-155.21440017,0.00054794,4]
[322297958,1712940641766,-500.0,0.00054794,120]
[322297960,1712940641775,-500.0,0.00054794,120]
[322297962,1712940641784,-500.0,0.00054794,120]
[322297963,1712940641795,-158.09608025,0.00054794,120]
[322297965,1712940641804,-500.0,0.00054794,120]
[322297967,1712940641813,-524.37,0.00054794,120]
[322297969,1712940641822,-500.0,0.00054794,120]
[322297971,1712940641831,-698.34,0.00054794,120]
[322297973,1712940641840,-505.20185528,0.00054794,120]
[322297975,1712940641849,-500.0,0.00054794,120]
[322297977,1712940641859,-500.0,0.00054794,120]
[322297979,1712940641873,-500.0,0.00054794,120]
[322297981,1712940641882,-500.0,0.00054794,120]
[322297983,1712940641892,-500.0,0.00054794,120]
[322297986,1712940641903,-500.0,0.00054794,120]
[322297987,1712940641912,-500.0,0.00054794,120]
[322297989,1712940641922,-500.0,0.00054794,120]
[322297992,1712940641932,-233.5454295,0.00054794,120]
[322297993,1712940641941,-500.0,0.00054794,120]
[322297995,1712940641952,-500.0,0.00054794,120]
[322297998,1712940641965,-500.0,0.00054794,120]
[322297999,1712940641975,-503.14677591,0.00054794,120]
[322298001,1712940641984,-500.0,0.00054794,120]
[322298003,1712940641993,-500.0,0.00054794,120]
[322298005,1712940642002,-481.4714267,0.00054794,120]
[322298007,1712940642011,-500.0,0.00054794,120]
[322298009,1712940642020,-507.65843774,0.00054794,120]
[322298011,1712940642029,-500.0,0.00054794,120]
[322298013,1712940642039,-500.0,0.00054794,120]
[322298015,1712940642048,-500.0,0.00054794,120]
[322298017,1712940642057,-500.0,0.00054794,120]
[322298019,1712940642066,-500.0,0.00054794,120]
[322298021,1712940642075,-500.0,0.00054794,120]
[322298023,1712940642085,-500.0,0.00054794,120]
[322298025,1712940642094,-736.04,0.00054794,120]
[322298027,1712940642103,-253.87168708,0.00054794,120]
[322298029,1712940642112,-500.0,0.00054794,120]
[322298031,1712940642121,-218.52591732,0.00054794,120]
[322298033,1712940642131,-514.37035449,0.00054794,120]
[322298036,1712940642142,-500.0,0.00054794,120]
[322298038,1712940642151,-500.0,0.00054794,120]
[322298039,1712940642161,-302.0,0.00054794,2]
[322298041,1712940642170,-440.23207232,0.00054794,120]
[322298044,1712940642179,-500.0,0.00054794,120]
[322298045,1712940642188,-500.0,0.00054794,120]
[322298047,1712940642198,-500.0,0.00054794,120]
[322298049,1712940642209,-500.0,0.00054794,120]
[322298051,1712940642218,-1008.13784438,0.00054794,120]
[322298053,1712940642227,-500.0,0.00054794,120]
[322298055,1712940642236,-500.0,0.00054794,120]
[322298057,1712940642245,-187.33083336,0.00054794,120]
[322298059,1712940642254,-500.0,0.00054794,120]
[322298061,1712940642263,-500.0,0.00054794,120]
[322298063,1712940642273,-500.0,0.00054794,120]
[322298065,1712940642282,-500.0,0.00054794,120]
[322298067,1712940642291,-500.0,0.00054794,120]
[322298069,1712940642300,-500.0,0.00054794,120]
[322298071,1712940642309,-500.0,0.00054794,120]
[322298073,1712940642318,-500.0,0.00054794,120]
[322298075,1712940642327,-500.0,0.00054794,120]
[322298077,1712940642337,-500.0,0.00054794,120]
[322298079,1712940642346,-500.0,0.00054794,120]
[322298081,1712940642355,-1000.0,0.00054794,7]
[322298083,1712940642364,-500.0,0.00054794,120]
[322298085,1712940642373,-500.0,0.00054794,120]
[322298087,1712940642382,-500.0,0.00054794,120]
[322298089,1712940642391,-500.0,0.00054794,120]
[322298091,1712940642401,-513.4,0.00054794,120]
[322298093,1712940642410,-500.0,0.00054794,120]
[322298095,1712940642419,-500.0,0.00054794,120]
[322298097,1712940642428,-500.0,0.00054794,120]
[322298100,1712940642438,-300.1343516,0.00054794,120]
[322298102,1712940642447,-500.0,0.00054794,120]
[322298104,1712940642458,-374.61535197,0.00054794,120]
[322298106,1712940642467,-500.0,0.00054794,120]
[322298108,1712940642476,-905.53,0.00054794,120]
[322298110,1712940642485,-500.0,0.00054794,120]
[322298112,1712940642494,-487.54079071,0.00054794,120]
[322298114,1712940642505,-500.0,0.00054794,120]
[322298116,1712940642513,-500.0,0.00054794,120]
[322298118,1712940642522,-500.0,0.00054794,120]
[322298120,1712940642531,-500.0,0.00054794,120]
[322298122,1712940642542,-500.0,0.00054794,120]
[322298126,1712940642553,-392.7392275,0.00054794,120]
[322298130,1712940642561,-500.0,0.00054794,120]
[322298133,1712940642569,-500.0,0.00054794,120]
[322298137,1712940642578,-500.0,0.00054794,120]
[322298140,1712940642587,-500.0,0.00054794,120]
[322298143,1712940642596,-500.0,0.00054794,120]
[322298145,1712940642605,-500.0,0.00054794,120]
[322298147,1712940642614,-155.48973338,0.00054794,120]
[322298149,1712940642623,-500.0,0.00054794,120]
[322298151,1712940642632,-500.0,0.00054794,120]
[322298152,1712940642641,-500.0,0.00054794,120]
[322298155,1712940642651,-500.0,0.00054794,120]
[322298157,1712940642660,-238.85494848,0.00054794,120]
[322298159,1712940642669,-615.32062633,0.00054794,120]
[322298161,1712940642678,-500.0,0.00054794,120]
[322298163,1712940642689,-500.0,0.00054794,120]
[322298165,1712940642698,-1223.88,0.00054794,120]
[322298168,1712940642710,-500.0,0.00054794,120]
[322298170,1712940642719,-500.0,0.00054794,120]
[322298172,1712940642728,-500.0,0.00054794,120]
[322298174,1712940642738,-500.0,0.00054794,120]
[322298176,1712940642747,-500.0,0.00054794,120]
[322298178,1712940642757,-500.0,0.00054794,120]
[322298180,1712940642767,-500.0,0.00054794,120]
[322298182,1712940642776,-500.0,0.00054794,120]
[322298184,1712940642786,-500.0,0.00054794,120]
[322298186,1712940642795,-500.0,0.00054794,120]
[322298188,1712940642805,-500.0,0.00054794,120]
[322298190,1712940642814,-823.7,0.00054794,120]
[322298192,1712940642823,-260.30017529,0.00054794,120]
[322298194,1712940642832,-500.0,0.00054794,120]
[322298196,1712940642841,-500.0,0.00054794,120]
[322298198,1712940642850,-1051.77,0.00054794,120]
[322298200,1712940642860,-500.0,0.00054794,120]
[322298202,1712940642870,-500.0,0.00054794,120]
[322298204,1712940642879,-500.0,0.00054794,120]
[322298206,1712940642888,-465.78694581,0.00054794,120]
[322298208,1712940642896,-500.0,0.00054794,120]
[322298210,1712940642905,-500.0,0.00054794,120]
[322298212,1712940642916,-500.0,0.00054794,120]
[322298214,1712940642925,-500.0,0.00054794,120]
[322298216,1712940642934,-500.0,0.00054794,120]
[322298218,1712940642946,-500.0,0.00054794,120]
[322298220,1712940642956,-500.0,0.00054794,120]
[322298222,1712940642967,-193.08517013,0.00054794,120]
[322298224,1712940642976,-500.0,0.00054794,120]
[322298225,1712940642986,-500.0,0.00054794,120]
[322298227,1712940642995,-781.82,0.00054794,120]
[322298229,1712940643004,-500.0,0.00054794,120]
[322298231,1712940643013,-500.0,0.00054794,120]
[322298233,1712940643022,-500.0,0.00054794,120]
[322298235,1712940643031,-10759.07,0.00054794,120]
[322298237,1712940643041,-500.0,0.00054794,120]
[322298239,1712940643050,-1236.65,0.00054794,120]
[322298241,1712940643060,-500.0,0.00054794,120]
[322298243,1712940643069,-297.1663235,0.00054794,120]
[322298245,1712940643079,-500.0,0.00054794,120]
[322298247,1712940643088,-500.0,0.00054794,120]
[322298249,1712940643098,-500.0,0.00054794,120]
[322298251,1712940643107,-500.0,0.00054794,120]
[322298253,1712940643116,-500.0,0.00054794,120]
[322298255,1712940643126,-500.0,0.00054794,120]
[322298257,1712940643135,-500.0,0.00054794,120]
[322298259,1712940643148,-252.61919789,0.00054794,120]
[322298261,1712940643157,-807.3,0.00054794,120]
[322298263,1712940643166,-500.0,0.00054794,120]
[322298266,1712940643175,-54718.66,0.00054794,120]
[322298267,1712940643185,-500.0,0.00054794,120]
[322298269,1712940643194,-500.0,0.00054794,120]
[322298278,1712940643271,-500.0,0.00054794,120]
[322298280,1712940643280,-500.0,0.00054794,120]
[322298282,1712940643291,-500.0,0.00054794,120]
[322298284,1712940643300,-500.0,0.00054794,120]
[322298286,1712940643309,-503.80975623,0.00054794,120]
[322298288,1712940643318,-500.0,0.00054794,120]
[322298290,1712940643327,-500.0,0.00054794,120]
[322298292,1712940643336,-500.0,0.00054794,120]
[322298294,1712940643346,-500.0,0.00054794,120]
[322298296,1712940643355,-557.46006368,0.00054794,120]
[322298298,1712940643364,-2373.58,0.00054794,21]
[322298300,1712940643373,-500.0,0.00054794,120]
[322298302,1712940643382,-500.0,0.00054794,120]
[322298304,1712940643392,-500.0,0.00054794,120]
[322298306,1712940643401,-500.0,0.00054794,120]
[322298308,1712940643410,-500.0,0.00054794,120]
[322298310,1712940643419,-500.0,0.00054794,120]
[322298312,1712940643429,-611.87652153,0.00054794,120]
[322298314,1712940643438,-500.0,0.00054794,120]
[322298316,1712940643447,-500.0,0.00054794,120]
[322298318,1712940643460,-529.04688503,0.00054794,120]
[322298320,1712940643469,-502.06828708,0.00054794,120]
[322298322,1712940643478,-2834.4,0.00054794,120]
[322298324,1712940643488,-500.0,0.00054794,120]
[322298326,1712940643497,-500.0,0.00054794,120]
[322298328,1712940643506,-832.37,0.00054794,120]
[322298330,1712940643516,-500.0,0.00054794,120]
[322298332,1712940643527,-500.0,0.00054794,120]
[322298334,1712940643536,-500.0,0.00054794,120]
[322298336,1712940643547,-500.0,0.00054794,120]
[322298338,1712940643556,-1828.37,0.00054794,120]
[322298340,1712940643566,-500.0,0.00054794,120]
[322298342,1712940643575,-502.50360943,0.00054794,120]
[322298344,1712940643584,-500.0,0.00054794,120]
[322298346,1712940643593,-1157.48,0.00054794,120]
[322298348,1712940643602,-500.0,0.00054794,60]
[322298350,1712940643611,-500.0,0.00054794,120]
[322298352,1712940643620,-500.0,0.00054794,120]
[322298354,1712940643629,-500.0,0.00054794,120]
[322298356,1712940643638,-4931.35,0.00054794,120]
[322298358,1712940643647,-500.0,0.00054794,120]
[322298360,1712940643656,-500.0,0.00054794,120]
[322298362,1712940643665,-550.9,0.00054794,120]
[322298364,1712940643675,-500.0,0.00054794,120]
[322298366,1712940643684,-351.08884706,0.00054794,120]
[322298368,1712940643693,-519.79491341,0.00054794,120]
[322298370,1712940643703,-638.85,0.00054794,120]
[322298372,1712940643715,-577.3584247,0.00054794,120]
[322298374,1712940643725,-532.65883253,0.00054794,120]
[322298376,1712940643735,-921.83,0.00054794,120]
[322298378,1712940643744,-500.0,0.00054794,120]
[322298380,1712940643755,-538.76934425,0.00054794,120]
[322298382,1712940643765,-500.0,0.00054794,120]
[322298384,1712940643774,-500.0,0.00054794,120]
[322298386,1712940643784,-497.82549668,0.00054794,120]
[322298388,1712940643792,-500.0,0.00054794,120]
[322298391,1712940643805,-500.0,0.00054794,120]
[322298392,1712940643814,-500.0,0.00054794,120]
[322298394,1712940643823,-500.0,0.00054794,120]
[322298396,1712940643833,-3617.4,0.00054794,120]
[322298398,1712940643842,-374.14526902,0.00054794,120]
[322298400,1712940643851,-1000.0,0.00054794,120]
[322298402,1712940643861,-500.0,0.00054794,120]
[322298404,1712940643872,-500.0,0.00054794,120]
[322298406,1712940643882,-500.0,0.00054794,120]
[322298408,1712940643891,-2001.96,0.00054794,120]
[322298410,1712940643900,-501.20453944,0.00054794,120]
[322298412,1712940643910,-2334.48,0.00054794,120]
[322298414,1712940643919,-1374.44,0.00054794,120]
[322298415,1712940643928,-500.0,0.00054794,120]
[322298416,1712940643937,-500.0,0.00054794,120]
[322298417,1712940643947,-500.0,0.00054794,120]
[322298418,1712940643958,-500.0,0.00054794,120]
[322298420,1712940643968,-500.0,0.00054794,120]
[322298422,1712940643978,-300.0,0.00054794,7]
[322298424,1712940643988,-500.0,0.00054794,120]
[322298426,1712940643998,-500.0,0.00054794,120]
[322298428,1712940644007,-500.0,0.00054794,120]
[322298430,1712940644016,-1875.07,0.00054794,120]
[322298432,1712940644026,-511.86025329,0.00054794,120]
[322298434,1712940644036,-500.0,0.00054794,120]
[322298436,1712940644046,-1071.24,0.00054794,120]
[322298438,1712940644056,-500.0,0.00054794,120]
[322298440,1712940644065,-500.0,0.00054794,120]
[322298442,1712940644074,-500.0,0.00054794,120]
[322298444,1712940644083,-500.0,0.00054794,120]
[322298446,1712940644092,-500.0,0.00054794,120]
[322298448,1712940644103,-500.0,0.00054794,120]
[322298450,1712940644112,-241.59,0.00054794,120]
[322298452,1712940644122,-500.0,0.00054794,120]
[322298454,1712940644131,-500.0,0.00054794,120]
[322298456,1712940644143,-500.0,0.00054794,120]
[322298458,1712940644152,-1282.99,0.00054794,120]
[322298460,1712940644162,-505.72965675,0.00054794,120]
[322298462,1712940644171,-881.01,0.00054794,120]
[322298464,1712940644180,-500.0,0.00054794,120]
[322298466,1712940644190,-218.78523006,0.00054794,120]
[322298468,1712940644200,-1452.4,0.00054794,120]
[322298470,1712940644211,-500.0,0.00054794,120]
[322298472,1712940644220,-500.0,0.00054794,120]
[322298474,1712940644229,-500.0,0.00054794,120]
[322298476,1712940644238,-556.35122411,0.00054794,120]
[322298478,1712940644247,-500.0,0.00054794,120]
[322298480,1712940644256,-500.0,0.00054794,120]
[322298482,1712940644265,-500.0,0.00054794,120]
[322298484,1712940644274,-428.44114347,0.00054794,120]
[322298486,1712940644283,-1770.86,0.00054794,120]
[322298488,1712940644292,-500.0,0.00054794,120]
[322298490,1712940644301,-2158.25,0.00054794,120]
[322298492,1712940644310,-853.55,0.00054794,120]
[322298494,1712940644319,-500.0,0.00054794,120]
[322298496,1712940644328,-259.92770034,0.00054794,120]
[322298498,1712940644337,-500.0,0.00054794,120]
[322298500,1712940644346,-500.0,0.00054794,120]
[322298502,1712940644355,-1904.01,0.00054794,120]
[322298504,1712940644364,-292.63875805,0.00054794,120]
[322298506,1712940644373,-500.0,0.00054794,120]
[322298508,1712940644382,-500.0,0.00054794,120]
[322298510,1712940644392,-500.0,0.00054794,120]
[322298512,1712940644401,-500.0,0.00054794,120]
[322298514,1712940644410,-500.0,0.00054794,120]
[322298516,1712940644419,-914.42,0.00054794,120]
[322298518,1712940644428,-500.0,0.00054794,120]
[322298519,1712940644437,-920.85,0.00054794,120]
[322298522,1712940644447,-500.0,0.00054794,120]
[322298524,1712940644456,-507.03594079,0.00054794,120]
[322298526,1712940644467,-150.91093986,0.00054795,120]
[322298528,1712940644476,-151.41,0.00054795,120]
[322298530,1712940644485,-151.09843986,0.00054795,120]
[322298532,1712940644495,-151.09843986,0.00054795,120]
[322298534,1712940644504,-151.09843986,0.00054795,120]
[322298536,1712940644513,-151.09843986,0.00054795,120]
[322298538,1712940644523,-151.09843986,0.00054795,120]
[322298540,1712940644532,-151.09843986,0.00054795,120]
[322298542,1712940644541,-151.09843986,0.00054795,120]
[322298544,1712940644550,-151.59,0.00054795,120]
[322298546,1712940644560,-167.67423362,0.00054795,120]
[322298548,1712940644569,-167.67423362,0.00054795,120]
[322298550,1712940644578,-167.67423362,0.00054795,120]
[322298552,1712940644587,-167.67423362,0.00054795,120]
[322298554,1712940644598,-167.67423362,0.00054795,120]
[322298556,1712940644607,-167.67423362,0.00054795,120]
[322298558,1712940644615,-167.67423362,0.00054795,120]
[322298560,1712940644624,-167.67423362,0.00054795,120]
[322298562,1712940644633,-167.67423362,0.00054795,120]
[322298564,1712940644641,-167.67423362,0.00054795,120]
[322298566,1712940644650,-167.67423362,0.00054795,120]
[322298568,1712940644659,-167.67423362,0.00054795,120]
[322298570,1712940644668,-167.67423362,0.00054795,120]
[322298571,1712940644677,-167.67423362,0.00054795,120]
[322298574,1712940644687,-167.67423362,0.00054795,120]
[322298575,1712940644696,-167.67423362,0.00054795,120]
[322298577,1712940644705,-167.67423362,0.00054795,120]
[322298579,1712940644716,-167.67423362,0.00054795,120]
[322298581,1712940644725,-167.67423362,0.00054795,120]
[322298583,1712940644734,-168.17,0.00054795,120]
[322298585,1712940644743,-670.77193449,0.00054795,120]
[322298587,1712940644752,-670.77193449,0.00054795,120]
[322298589,1712940644761,-670.77193449,0.00054795,120]
[322298591,1712940644771,-670.77193449,0.00054795,120]
[322298593,1712940644780,-670.77193449,0.00054795,120]
[322298602,1712940644789,-670.77193449,0.00054795,120]
[322298605,1712940644866,-670.77193449,0.00054795,120]
[322298607,1712940644875,-670.77193449,0.00054795,120]
[322298609,1712940644884,-670.77193449,0.00054795,120]
[322298611,1712940644893,-670.77193449,0.00054795,120]
[322298613,1712940644903,-670.77193449,0.00054795,120]
[322298615,1712940644913,-670.77193449,0.00054795,120]
[322298616,1712940644922,-670.77193449,0.00054795,120]
[322298618,1712940644931,-670.77193449,0.00054795,120]
[322298620,1712940644942,-670.77193449,0.00054795,120]
[322298622,1712940644952,-670.77193449,0.00054795,120]
[322298624,1712940644961,-670.77193449,0.00054795,120]
[322298626,1712940644970,-670.77193449,0.00054795,120]
[322298628,1712940644979,-670.77193449,0.00054795,120]
[322298630,1712940644988,-671.27,0.00054795,120]
[322298632,1712940644998,-400.0,0.00054795,30]
[322298634,1712940645007,-151.5905511,0.00054795,120]
[322298636,1712940645017,-151.5905511,0.00054795,120]
[322298638,1712940645026,-151.5905511,0.00054795,120]
[322298640,1712940645035,-151.5905511,0.00054795,120]
[322298642,1712940645044,-151.5905511,0.00054795,120]
[322298644,1712940645054,-151.5905511,0.00054795,120]
[322298647,1712940645064,-151.5905511,0.00054795,120]
[322298649,1712940645073,-151.5905511,0.00054795,120]
[322298651,1712940645082,-151.5905511,0.00054795,120]
[322298653,1712940645092,-152.09,0.00054795,120]
[322298655,1712940645101,-303.2561022,0.00054795,120]
[322298657,1712940645110,-303.2561022,0.00054795,120]
[322298659,1712940645120,-303.2561022,0.00054795,120]
[322298660,1712940645129,-303.2561022,0.00054795,120]
[322298662,1712940645139,-303.2561022,0.00054795,120]
[322298664,1712940645149,-153.8365412,0.00054944,60]
[322298666,1712940645158,-492.0,0.00055,120]
[322298668,1712940645167,-1799.97122019,0.000557,120]
[322298671,1712940645177,-150.8642222,0.0005591,2]
[322298673,1712940645186,-224.014441,0.00056236,2]
[322298675,1712940645196,-225.086783,0.00056236,2]
[322298676,1712940645205,-174.87576,0.00056236,2]
[322298678,1712940645217,-175.386852,0.00056236,2]
[322298680,1712940645226,-153.83654137,0.0005654,120]
[322298682,1712940645235,-500.0,0.00056712,120]
[322298685,1712940645245,-500.0,0.00056712,120]
[322298687,1712940645254,-500.0,0.00056712,120]
[322298688,1712940645263,-500.0,0.00056712,120]
[322298691,1712940645273,-524.37,0.00056712,120]
[322298692,1712940645282,-500.0,0.00056712,120]
[322298694,1712940645292,-698.34,0.00056712,120]
[322298696,1712940645301,-500.0,0.00056712,120]
[322298698,1712940645311,-500.0,0.00056712,120]
[322298700,1712940645320,-500.0,0.00056712,120]
[322298702,1712940645329,-500.0,0.00056712,120]
[322298705,1712940645338,-574.20450814,0.00056712,120]
[322298707,1712940645347,-500.0,0.00056712,120]
[322298708,1712940645357,-151.0,0.00056712,120]
[322298711,1712940645366,-500.0,0.00056712,120]
[322298712,1712940645376,-500.0,0.00056712,120]
[322298714,1712940645385,-190.64638675,0.00056712,120]
[322298716,1712940645395,-500.0,0.00056712,120]
[322298718,1712940645404,-500.0,0.00056712,120]
[322298720,1712940645413,-500.0,0.00056712,120]
[322298723,1712940645423,-500.0,0.00056712,120]
[322298724,1712940645433,-500.0,0.00056712,120]
[322298726,1712940645442,-500.0,0.00056712,120]
[322298729,1712940645451,-500.0,0.00056712,120]
[322298731,1712940645461,-500.0,0.00056712,120]
[322298733,1712940645470,-500.0,0.00056712,120]
[322298735,1712940645479,-736.04,0.00056712,120]
[322298737,1712940645488,-500.0,0.00056712,120]
[322298740,1712940645497,-500.0,0.00056712,120]
[322298743,1712940645508,-500.0,0.00056712,120]
[322298746,1712940645519,-500.0,0.00056712,120]
[322298749,1712940645528,-500.0,0.00056712,120]
[322298751,1712940645537,-500.0,0.00056712,120]
[322298754,1712940645546,-500.0,0.00056712,120]
[322298757,1712940645555,-500.0,0.00056712,120]
[322298760,1712940645564,-173.196543,0.00056712,120]
[322298763,1712940645573,-511.0474743,0.00056712,120]
[322298766,1712940645583,-500.0,0.00056712,120]
[322298769,1712940645591,-295.04346083,0.00056712,120]
[322298772,1712940645601,-500.0,0.00056712,120]
[322298774,1712940645610,-500.0,0.00056712,120]
[322298777,1712940645619,-500.0,0.00056712,120]
[322298780,1712940645629,-1000.0,0.00056712,7]
[322298782,1712940645638,-500.0,0.00056712,120]
[322298784,1712940645648,-500.0,0.00056712,120]
[322298787,1712940645657,-500.0,0.00056712,120]
[322298789,1712940645666,-500.0,0.00056712,120]
[322298791,1712940645676,-513.4,0.00056712,120]
[322298793,1712940645685,-500.0,0.00056712,120]
[322298795,1712940645694,-151.0,0.00056712,120]
[322298797,1712940645704,-422.97323723,0.00056712,120]
[322298799,1712940645714,-500.0,0.00056712,120]
[322298801,1712940645723,-500.0,0.00056712,120]
[322298803,1712940645732,-905.53,0.00056712,120]
[322298805,1712940645741,-500.0,0.00056712,120]
[322298807,1712940645752,-500.0,0.00056712,120]
[322298809,1712940645761,-500.0,0.00056712,120]
[322298811,1712940645771,-500.0,0.00056712,120]
[322298813,1712940645780,-500.0,0.00056712,120]
[322298815,1712940645789,-500.0,0.00056712,120]
[322298817,1712940645798,-527.88170902,0.00056712,120]
[322298819,1712940645808,-500.0,0.00056712,120]
[322298821,1712940645817,-500.0,0.00056712,120]
[322298823,1712940645826,-500.0,0.00056712,120]
[322298825,1712940645835,-500.0,0.00056712,120]
[322298827,1712940645844,-615.32305045,0.00056712,120]
[322298829,1712940645853,-454.42818156,0.00056712,120]
[322298831,1712940645863,-500.0,0.00056712,120]
[322298833,1712940645875,-1223.88,0.00056712,120]
[322298835,1712940645884,-500.0,0.00056712,120]
[322298837,1712940645893,-500.0,0.00056712,120]
[322298839,1712940645902,-500.0,0.00056712,120]
[322298841,1712940645911,-500.0,0.00056712,120]
[322298843,1712940645922,-506.0829126,0.00056712,120]
[322298845,1712940645931,-500.0,0.00056712,120]
[322298847,1712940645940,-500.0,0.00056712,120]
[322298849,1712940645950,-823.7,0.00056712,120]
[322298851,1712940645961,-151.0,0.00056712,120]
[322298853,1712940645970,-500.0,0.00056712,120]
[322298855,1712940645979,-1051.77,0.00056712,120]
[322298857,1712940645988,-500.0,0.00056712,120]
[322298859,1712940645997,-500.0,0.00056712,120]
[322298861,1712940646006,-500.0,0.00056712,120]
[322298863,1712940646015,-500.0,0.00056712,120]
[322298865,1712940646024,-500.0,0.00056712,120]
[322298866,1712940646033,-500.0,0.00056712,120]
[322298868,1712940646043,-781.82,0.00056712,120]
[322298870,1712940646053,-500.0,0.00056712,120]
[322298872,1712940646062,-10759.07,0.00056712,120]
[322298874,1712940646072,-1236.65,0.00056712,120]
[322298876,1712940646081,-508.37236142,0.00056712,120]
[322298878,1712940646090,-500.0,0.00056712,120]
[322298880,1712940646099,-500.0,0.00056712,120]
[322298882,1712940646108,-347.84297722,0.00056712,120]
[322298884,1712940646117,-500.0,0.00056712,120]
[322298886,1712940646128,-807.3,0.00056712,120]
[322298888,1712940646137,-500.13092571,0.00056712,120]
[322298890,1712940646146,-159.162069,0.00056712,120]
[322298892,1712940646155,-14923.63838646,0.00056712,120]
[322298910,1712940646321,-497.56477588,0.00056712,120]
[322298942,1712940646625,-156.87945876,0.00025248,2]
[322298944,1712940646634,-303.2561022,0.00054795,120]
[322298946,1712940646644,-303.2561022,0.00054795,120]
[322298948,1712940646653,-303.2561022,0.00054795,120]
[322298950,1712940646662,-303.2561022,0.00054795,120]
[322298952,1712940646671,-303.2561022,0.00054795,120]
[322298954,1712940646679,-116.61630982,0.00054795,120]
[322298977,1712940646890,-186.63979238,0.00054795,120]
[322298979,1712940646900,-303.2561022,0.00054795,120]
[322298981,1712940646910,-303.2561022,0.00054795,120]
[322298983,1712940646919,-303.2561022,0.00054795,120]
[322298984,1712940646929,-303.2561022,0.00054795,120]
[322298986,1712940646938,-303.2561022,0.00054795,120]
[322298989,1712940646948,-303.2561022,0.00054795,120]
[322298990,1712940646959,-303.2561022,0.00054795,120]